bitfinex/quotes_BTCUSD_20240721
["timestamp","ask_amount","ask_price","bid_price","bid_amount"]
[1721562875719,0.00836,66945.0,66944.0,1.28949819]
[1721562876961,0.00836,66945.0,66944.0,1.29449819]
[1721562877340,0.00836,66945.0,66944.0,1.30349819]
[1721562877580,0.00836,66945.0,66944.0,1.31750335]
[1721562880670,0.00836,66945.0,66944.0,1.3175047]
[1721562881047,0.00836,66945.0,66944.0,1.31750465]
[1721562884194,0.00836,66945.0,66944.0,0.17788084]
[1721562884802,0.02283913,66945.0,66944.0,0.17788084]
[1721562888712,0.02283913,66945.0,66944.0,0.32725884]
[1721562890412,0.02283913,66945.0,66944.0,0.3272636]
[1721562891587,0.02283913,66945.0,66944.0,0.6260206]
[1721562892969,0.02283913,66945.0,66944.0,0.3272636]
[1721562895035,0.01983913,66945.0,66944.0,0.3272636]
[1721562896823,0.01983913,66945.0,66944.0,0.32726215]
[1721562897438,0.10083913,66945.0,66944.0,0.17788415]
[1721562900055,0.10083913,66945.0,66944.0,0.17788594]
[1721562900547,0.10083913,66945.0,66944.0,0.17788595]
[1721562900548,0.61326713,66945.0,66944.0,0.17788595]
[1721562901473,0.61326713,66945.0,66944.0,0.14088595]
[1721562901741,0.61326713,66945.0,66944.0,0.14888595]
[1721562902500,0.61326713,66945.0,66944.0,0.14889225]
[1721562902948,0.61326713,66945.0,66944.0,0.14889226]
[1721562908466,0.01983913,66945.0,66944.0,0.37607026]
[1721562908898,0.01983913,66945.0,66944.0,0.37606563]
[1721562909531,0.01983913,66945.0,66944.0,0.66882263]
[1721562909745,0.01983913,66945.0,66944.0,0.67582263]
[1721562909746,0.00536,66945.0,66944.0,0.67582263]
[1721562910161,0.00536,66945.0,66944.0,0.66682263]
[1721562910567,0.00536,66945.0,66944.0,0.67382263]
[1721562910776,0.00536,66945.0,66944.0,0.68182263]
[1721562911396,0.00536,66945.0,66944.0,0.67382263]
[1721562911616,0.00536,66945.0,66944.0,0.68182263]
[1721562912047,0.00536,66945.0,66944.0,0.67482158]
[1721562912490,0.00536,66945.0,66944.0,0.60402159]
[1721562912926,0.0062818,66945.0,66944.0,0.60402159]
[1721562913129,0.0062818,66945.0,66944.0,0.59602159]
[1721562913584,0.0062818,66945.0,66944.0,0.60402159]
[1721562913765,0.0062818,66945.0,66944.0,0.59702159]
[1721562913984,0.0062818,66945.0,66944.0,0.60402159]
[1721562914495,0.0062818,66945.0,66944.0,0.59602159]
[1721562914694,0.0062818,66945.0,66944.0,0.47198547]
[1721562914898,0.0062818,66945.0,66944.0,0.59602158]
[1721562915104,0.0062818,66945.0,66944.0,0.60402406]
[1721562915486,0.0062818,66945.0,66944.0,0.59702406]
[1721562915717,0.0062818,66945.0,66944.0,0.60402406]
[1721562916142,0.0062818,66945.0,66944.0,0.30526706]
[1721562916344,0.0821818,66945.0,66944.0,0.31226706]
[1721562916537,0.0821818,66945.0,66944.0,0.30426706]
[1721562917669,0.0821818,66945.0,66944.0,0.31226706]
[1721562918473,0.0821818,66945.0,66944.0,0.3122682]
[1721562919760,0.0821818,66945.0,66944.0,0.1628902]
[1721562921522,0.5922098,66945.0,66944.0,0.14603973]
[1721562921745,0.8909618,66945.0,66944.0,0.14604313]
[1721562922166,0.8909618,66945.0,66944.0,0.16290111]
[1721562923001,0.8909618,66945.0,66944.0,0.15490111]
[1721562923209,0.8909618,66945.0,66944.0,0.14790111]
[1721562923420,0.8909618,66945.0,66944.0,0.15590111]
[1721562924515,0.9045367,66945.0,66944.0,0.15590111]
[1721562924744,0.9045367,66945.0,66944.0,0.13905094]
[1721562924953,0.9045367,66945.0,66944.0,0.15590141]
[1721562925186,0.9045367,66945.0,66944.0,0.03185047]
[1721562925187,1.2032887,66945.0,66944.0,0.03185047]
[1721562925403,1.21251738,66945.0,66944.0,0.03185047]
[1721562926085,1.21251738,66945.0,66944.0,0.015]
[1721562926961,1.25733326,66945.0,66944.0,0.015]
[1721562927173,1.39211376,66945.0,66944.0,0.015]
[1721562927807,1.39210071,66945.0,66944.0,0.015]
[1721562928012,1.39210071,66945.0,66944.0,0.007]
[1721562928858,0.746925,66941.0,66940.0,0.01685047]
[1721562929068,0.884725,66941.0,66940.0,0.14090948]
[1721562929295,0.89920233,66941.0,66940.0,0.14090948]
[1721562929511,0.89920233,66941.0,66940.0,0.1409099]
[1721562930565,0.76140233,66941.0,66940.0,0.1409099]
[1721562930784,0.16386233,66941.0,66940.0,0.1409099]
[1721562931015,0.01447733,66941.0,66940.0,0.1409099]
[1721562933856,0.01447733,66941.0,66940.0,0.1419099]
[1721562934281,0.01447733,66941.0,66940.0,0.14190031]
[1721562934703,0.01447733,66941.0,66940.0,0.14190032]
[1721562934958,0.01447733,66941.0,66940.0,0.14090032]
[1721562935294,0.01447733,66941.0,66940.0,0.14290032]
[1721562936195,0.01447733,66941.0,66940.0,0.14690032]
[1721562937262,0.01447733,66941.0,66940.0,0.02285047]
[1721562937491,0.01447733,66941.0,66940.0,0.14690031]
[1721562937684,0.01447733,66941.0,66940.0,0.14290031]
[1721562937904,0.01447733,66941.0,66940.0,0.14690031]
[1721562938109,0.01447733,66941.0,66940.0,0.14490031]
[1721562938522,0.01447733,66941.0,66940.0,0.14690031]
[1721562939331,0.01447733,66941.0,66940.0,0.14090031]
[1721562939560,0.01447733,66941.0,66940.0,0.14190031]
[1721562940198,0.01447733,66941.0,66940.0,0.14090031]
[1721562940520,0.01447733,66941.0,66940.0,0.01785047]
[1721562940637,0.01447733,66941.0,66940.0,0.14189996]
[1721562943924,0.01447733,66941.0,66940.0,0.14089996]
[1721562944428,0.01447733,66941.0,66940.0,0.14090012]
[1721562944850,0.01447733,66941.0,66940.0,0.14190012]
[1721562945488,0.01447733,66941.0,66940.0,0.14390012]
[1721562946203,0.01447733,66941.0,66940.0,0.14290012]
[1721562946634,0.01447733,66941.0,66940.0,0.14690012]
[1721562947037,0.01447733,66941.0,66940.0,0.14690009]
[1721562947659,0.01447733,66941.0,66940.0,0.14090009]
[1721562948025,0.01447733,66941.0,66940.0,0.14190009]
[1721562948575,0.01447733,66941.0,66940.0,0.14390009]
[1721562948909,0.01447733,66941.0,66940.0,0.14190009]
[1721562949784,0.01447733,66941.0,66940.0,0.14090009]
[1721562950179,0.01447733,66941.0,66940.0,0.16085047]
[1721562950427,0.01447733,66941.0,66940.0,1.03183709]
[1721562950632,0.00536,66945.0,66944.0,0.30942847]
[1721562950840,0.00536,66945.0,66944.0,0.73223509]
[1721562951885,0.00536,66945.0,66944.0,1.03099209]
[1721562952644,0.00536,66945.0,66944.0,1.4841127]
[1721562953279,0.00536,66945.0,66944.0,1.36008121]
[1721562953442,0.00536,66945.0,66944.0,1.4841127]
[1721562953651,0.00536,66945.0,66944.0,1.36008121]
[1721562953853,0.00536,66945.0,66944.0,1.48511239]
[1721562954253,0.00536,66945.0,66944.0,1.48411239]
[1721562954679,0.00536,66945.0,66944.0,1.49311239]
[1721562955253,0.00536,66945.0,66944.0,1.48411239]
[1721562955456,0.00536,66945.0,66944.0,1.49111239]
[1721562955679,0.00536,66945.0,66944.0,1.48411239]
[1721562956743,0.00536,66945.0,66944.0,1.49511239]
[1721562956917,0.00536,66945.0,66944.0,1.50411239]
[1721562959785,0.00536,66945.0,66944.0,1.49311239]
[1721562959994,0.00536,66945.0,66944.0,1.48411239]
[1721562960201,0.00536,66945.0,66944.0,1.49511239]
[1721562960400,0.00536,66945.0,66944.0,1.50411239]
[1721562960632,0.00536,66945.0,66944.0,1.19435539]
[1721562961100,0.00536,66945.0,66944.0,1.21435539]
[1721562961828,0.00536,66945.0,66944.0,1.05997365]
[1721562962229,0.00536,66945.0,66944.0,0.93594247]
[1721562962453,0.00536,66945.0,66944.0,1.05997365]
[1721562966715,0.00536,66945.0,66944.0,1.04897365]
[1721562967162,0.00536,66945.0,66944.0,1.04197365]
[1721562967367,0.00536,66945.0,66944.0,1.05097365]
[1721562967586,0.00536,66945.0,66944.0,1.03997365]
[1721562968005,0.00536,66945.0,66944.0,1.05997365]
[1721562969265,0.06556,66945.0,66944.0,0.16988165]
[1721562969475,0.06644064,66945.0,66944.0,0.16988165]
[1721562969689,0.07849788,66945.0,66944.0,0.16988165]
[1721562970102,0.07849788,66945.0,66944.0,0.15888165]
[1721562970282,0.07849788,66945.0,66944.0,0.14088165]
[1721562970490,0.07849788,66945.0,66944.0,0.16088165]
[1721562970868,0.07849788,66945.0,66944.0,0.15188165]
[1721562971069,0.07849788,66945.0,66944.0,0.14988165]
[1721562971452,0.07849788,66945.0,66944.0,0.14088165]
[1721562971649,0.07849788,66945.0,66944.0,0.15188165]
[1721562971848,0.07849788,66945.0,66944.0,0.15189188]
[1721562972492,0.07849788,66945.0,66944.0,0.16089188]
[1721562972681,0.07849788,66945.0,66944.0,0.31026988]
[1721562972919,0.01829788,66945.0,66944.0,0.68742688]
[1721562973303,0.00536,66945.0,66944.0,0.68742296]
[1721562973915,0.00536,66945.0,66944.0,0.66742296]
[1721562974286,0.00536,66945.0,66944.0,0.68742296]
[1721562974844,0.00536,66945.0,66944.0,0.56338547]
[1721562975073,0.00536,66945.0,66944.0,0.68742182]
[1721562975276,0.01829761,66945.0,66944.0,0.68742182]
[1721562975451,0.00536,66945.0,66944.0,0.68742182]
[1721562975685,0.00536,66945.0,66944.0,0.60902182]
[1721562978241,0.00536,66945.0,66944.0,0.48498547]
[1721562978443,0.00536,66945.0,66944.0,0.60902444]
[1721562980801,0.15076,66945.0,66944.0,0.60902444]
[1721562980943,0.15076,66945.0,66944.0,0.31026744]
[1721562981155,0.1636979,66945.0,66944.0,0.31026744]
[1721562981790,0.1636979,66945.0,66944.0,0.18622847]
[1721562981964,0.1636979,66945.0,66944.0,0.31026916]
[1721562982545,0.1636979,66945.0,66944.0,0.16089116]
[1721562982760,0.3130739,66945.0,66944.0,0.16089116]
[1721562984291,0.3130739,66945.0,66944.0,0.16089342]
[1721562985552,0.3130739,66945.0,66944.0,0.15089342]
[1721562987736,0.3130739,66945.0,66944.0,0.02685047]
[1721562987938,0.3130739,66945.0,66944.0,0.15089304]
[1721562993715,0.3130739,66945.0,66944.0,0.15181704]
[1721562994136,0.3130739,66945.0,66944.0,0.02777447]
[1721562994337,0.3130739,66945.0,66944.0,0.15181716]
[1721562997491,0.3130739,66945.0,66944.0,0.02777447]
[1721562997698,0.3130739,66945.0,66944.0,0.15181716]
[1721562999476,0.0182979,66945.0,66944.0,0.15181716]
[1721563000837,0.0182979,66945.0,66944.0,0.15181633]
[1721563003612,0.0182979,66945.0,66944.0,1.04430833]
[1721563003815,0.0182979,66945.0,66944.0,0.92026647]
[1721563003947,0.00536,66945.0,66944.0,1.0443008]
[1721563004380,0.00536,66945.0,66944.0,1.0353008]
[1721563004604,0.00536,66945.0,66944.0,1.0193008]
[1721563004808,0.00536,66945.0,66944.0,1.0393008]
[1721563005573,0.00536,66945.0,66944.0,1.0493008]
[1721563005755,0.00536,66945.0,66944.0,1.0303008]
[1721563005960,0.00536,66945.0,66944.0,1.0403008]
[1721563006911,0.00536,66945.0,66944.0,1.0293008]
[1721563007124,0.00536,66945.0,66944.0,1.04130084]
[1721563010152,0.00536,66945.0,66944.0,0.91726647]
[1721563010313,0.00536,66945.0,66944.0,1.04129757]
[1721563010495,0.00536,66945.0,66944.0,0.91726647]
[1721563010689,0.00536,66945.0,66944.0,1.04129757]
[1721563013104,0.00536,66945.0,66944.0,0.91726647]
[1721563013243,0.00536,66945.0,66944.0,1.04129757]
[1721563015414,0.00536,66945.0,66944.0,1.03129757]
[1721563015985,0.00536,66945.0,66944.0,1.04129757]
[1721563016393,0.00536,66945.0,66944.0,1.02929757]
[1721563016642,0.00536,66945.0,66944.0,1.03129913]
[1721563016859,0.00536,66945.0,66944.0,1.04129913]
[1721563017198,0.00536,66945.0,66944.0,1.02929913]
[1721563017605,0.00536,66945.0,66944.0,1.04129913]
[1721563019086,0.00536,66945.0,66944.0,1.03129913]
[1721563019526,0.00536,66945.0,66944.0,1.02929913]
[1721563019729,0.00536,66945.0,66944.0,1.04129913]
[1721563019949,0.00536,66945.0,66944.0,1.04129996]
[1721563020152,0.00536,66945.0,66944.0,1.03129996]
[1721563020373,0.00536,66945.0,66944.0,1.01929996]
[1721563020587,0.00536,66945.0,66944.0,1.04129996]
[1721563022342,0.00536,66945.0,66944.0,0.91726647]
[1721563022547,0.00536,66945.0,66944.0,1.04130096]
[1721563025571,0.00536,66945.0,66944.0,0.91726647]
[1721563025771,0.00536,66945.0,66944.0,1.04130244]
[1721563026533,0.00536,66945.0,66944.0,1.34005944]
[1721563026962,0.00536,66945.0,66944.0,1.31805944]
[1721563027167,0.00536,66945.0,66944.0,1.34005944]
[1721563027756,0.00536,66945.0,66944.0,1.32805944]
[1721563028193,0.00536,66945.0,66944.0,1.34005944]
[1721563028395,0.00536,66945.0,66944.0,1.33005944]
[1721563028829,0.00536,66945.0,66944.0,1.57841503]
[1721563029815,0.00536,66945.0,66944.0,1.56641503]
[1721563030012,0.00536,66945.0,66944.0,1.57941503]
[1721563030213,0.00536,66945.0,66944.0,1.56941503]
[1721563030418,0.00536,66945.0,66944.0,1.58041503]
[1721563030620,0.00536,66945.0,66944.0,1.56741503]
[1721563030944,0.00536,66945.0,66944.0,1.58141503]
[1721563031558,0.00536,66945.0,66944.0,1.57041503]
[1721563031901,0.00536,66945.0,66944.0,1.38435545]
[1721563032117,0.00536,66945.0,66944.0,1.57039443]
[1721563032734,0.00536,66945.0,66944.0,1.58439443]
[1721563033638,0.00536,66945.0,66944.0,1.53208844]
[1721563034720,0.00536,66945.0,66944.0,1.22202347]
[1721563034929,0.00536,66945.0,66944.0,1.53208844]
[1721563035132,0.00536,66945.0,66944.0,1.22202347]
[1721563035327,0.00536,66945.0,66944.0,1.53208844]
[1721563036139,0.00536,66945.0,66944.0,1.50408844]
[1721563036540,0.00536,66945.0,66944.0,1.53208844]
[1721563038041,0.00536,66945.0,66944.0,1.53208838]
[1721563038674,0.00536,66945.0,66944.0,1.58439596]
[1721563039275,0.00536,66945.0,66944.0,1.57039596]
[1721563039490,0.00536,66945.0,66944.0,1.58439596]
[1721563040145,0.00536,66945.0,66944.0,1.57039596]
[1721563040350,0.00536,66945.0,66944.0,1.58439596]
[1721563041222,0.00536,66945.0,66944.0,1.58439678]
[1721563043984,0.00536,66945.0,66944.0,1.57039678]
[1721563044191,0.00536,66945.0,66944.0,1.58439678]
[1721563044617,0.00536,66945.0,66944.0,1.22202347]
[1721563044817,0.00536,66945.0,66944.0,1.57039683]
[1721563045353,0.00536,66945.0,66944.0,1.58439683]
[1721563045698,0.00536,66945.0,66944.0,1.57039683]
[1721563045894,0.00536,66945.0,66944.0,1.55639683]
[1721563046097,0.00536,66945.0,66944.0,1.57039683]
[1721563046319,0.00536,66945.0,66944.0,1.58439683]
[1721563048075,0.00536,66945.0,66944.0,1.584397]
[1721563048962,0.00536,66945.0,66944.0,1.570397]
[1721563049144,0.00536,66945.0,66944.0,1.584397]
[1721563049347,0.00536,66945.0,66944.0,1.570397]
[1721563049587,0.00536,66945.0,66944.0,1.584397]
[1721563049787,0.00536,66945.0,66944.0,1.570397]
[1721563049991,0.00536,66945.0,66944.0,1.556397]
[1721563050775,0.00536,66945.0,66944.0,1.570397]
[1721563051222,0.00536,66945.0,66944.0,1.57039699]
[1721563051438,0.00536,66945.0,66944.0,1.58439699]
[1721563052191,0.00536,66945.0,66944.0,1.54608837]
[1721563052395,0.00536,66945.0,66944.0,1.70047011]
[1721563054890,0.00536,66945.0,66944.0,1.70047012]
[1721563057649,0.00536,66945.0,66944.0,1.37640521]
[1721563057824,0.00536,66945.0,66944.0,1.68647012]
[1721563058171,0.00536,66945.0,66944.0,1.70047012]
[1721563058392,0.00536,66945.0,66944.0,1.67247012]
[1721563058938,0.00536,66945.0,66944.0,1.68647012]
[1721563059468,0.00536,66945.0,66944.0,1.75366894]
[1721563059670,0.00536,66945.0,66944.0,2.08483299]
[1721563059855,0.00536,66945.0,66944.0,2.01763417]
[1721563060927,0.00536,66945.0,66944.0,2.01759955]
[1721563061717,0.00536,66945.0,66944.0,2.00359955]
[1721563062064,0.00536,66945.0,66944.0,2.01759955]
[1721563062200,0.00536,66945.0,66944.0,2.07076615]
[1721563062401,0.00536,66945.0,66944.0,2.08476615]
[1721563064060,0.00536,66945.0,66944.0,1.68644326]
[1721563064264,0.00536,66945.0,66944.0,2.08476257]
[1721563064486,0.00536,66945.0,66944.0,1.77472452]
[1721563064708,0.00536,66945.0,66944.0,2.08476253]
[1721563067082,0.00536,66945.0,66944.0,2.08476302]
[1721563067286,0.00536,66945.0,66944.0,1.68644371]
[1721563067509,0.00536,66945.0,66944.0,2.08475545]
[1721563067724,0.00536,66945.0,66944.0,1.75359861]
[1721563067922,0.00536,66945.0,66944.0,2.08475612]
[1721563068323,0.00536,66945.0,66944.0,1.75359861]
[1721563070576,0.00536,66945.0,66944.0,1.75360514]
[1721563071158,0.00536,66945.0,66944.0,2.08476401]
[1721563073755,0.00536,66945.0,66944.0,1.37640521]
[1721563074000,0.00536,66945.0,66944.0,2.08477016]
[1721563074213,0.00536,66945.0,66944.0,2.08477015]
[1721563076672,0.00536,66945.0,66944.0,1.68644559]
[1721563076882,0.00536,66945.0,66944.0,1.37640521]
[1721563077081,0.00536,66945.0,66944.0,2.08476819]
[1721563078553,0.00536,66945.0,66944.0,2.07076819]
[1721563078927,0.00536,66945.0,66944.0,2.08476819]
[1721563079414,0.00536,66945.0,66944.0,2.07076819]
[1721563080199,0.00536,66945.0,66944.0,1.7607265]
[1721563080408,0.00536,66945.0,66944.0,2.08476688]
[1721563081696,0.00536,66945.0,66944.0,2.05676688]
[1721563081902,0.00536,66945.0,66944.0,2.07076688]
[1721563082552,0.00536,66945.0,66944.0,2.08476688]
[1721563082752,0.00536,66945.0,66944.0,2.07076283]
[1721563083175,0.00536,66945.0,66944.0,2.08475898]
[1721563083600,0.00536,66945.0,66944.0,2.07075898]
[1721563084008,0.00536,66945.0,66944.0,2.85075898]
[1721563084192,0.00536,66945.0,66944.0,3.19951598]
[1721563084445,0.00536,66945.0,66944.0,2.35236146]
[1721563084662,0.00536,66945.0,66944.0,2.42790082]
[1721563085090,0.00536,66945.0,66944.0,2.45590082]
[1721563085518,0.00536,66945.0,66944.0,2.41990082]
[1721563085691,0.00536,66945.0,66944.0,2.41987879]
[1721563086243,0.00536,66945.0,66944.0,2.45587879]
[1721563086445,0.00536,66945.0,66944.0,2.51987879]
[1721563087545,0.00536,66945.0,66944.0,2.49187879]
[1721563088080,0.00536,66945.0,66944.0,2.50587879]
[1721563088282,0.00536,66945.0,66944.0,2.47787879]
[1721563088612,0.00536,66945.0,66944.0,2.50587879]
[1721563088807,0.00536,66945.0,66944.0,1.77516221]
[1721563089007,0.00536,66945.0,66944.0,2.49186602]
[1721563089447,0.00536,66945.0,66944.0,2.50586602]
[1721563090167,0.00536,66945.0,66944.0,2.45586602]
[1721563090623,0.00536,66945.0,66944.0,2.50586602]
[1721563092036,0.00536,66945.0,66944.0,1.89917414]
[1721563092236,0.00536,66945.0,66944.0,2.45586443]
[1721563094674,0.00536,66945.0,66944.0,2.50586443]
[1721563095239,0.00536,66945.0,66944.0,2.19583461]
[1721563095527,0.00536,66945.0,66944.0,2.505871]
[1721563095738,0.00536,66945.0,66944.0,3.255871]
[1721563095986,0.00536,66945.0,66944.0,3.44025607]
[1721563096463,0.00536,66945.0,66944.0,3.32834322]
[1721563096666,0.00536,66945.0,66944.0,3.31434322]
[1721563097412,0.00536,66945.0,66944.0,3.30034322]
[1721563097652,0.00536,66945.0,66944.0,3.31434322]
[1721563098110,0.00536,66945.0,66944.0,2.62516221]
[1721563098366,0.00536,66945.0,66944.0,3.3283212]
[1721563098606,0.00536,66945.0,66944.0,3.31432064]
[1721563098840,0.00536,66945.0,66944.0,3.32831934]
[1721563099214,0.00536,66945.0,66944.0,3.31431934]
[1721563099576,0.00536,66945.0,66944.0,3.32831934]
[1721563100320,0.00536,66945.0,66944.0,3.31431934]
[1721563100678,0.00536,66945.0,66944.0,3.32831934]
[1721563101081,0.00536,66945.0,66944.0,3.30031934]
[1721563101276,0.00536,66945.0,66944.0,3.31431934]
[1721563101478,0.00536,66945.0,66944.0,3.32831934]
[1721563101887,0.00536,66945.0,66944.0,2.95629718]
[1721563102091,0.00536,66945.0,66944.0,3.32831879]
[1721563105277,0.00536,66945.0,66944.0,3.32831684]
[1721563106668,0.00536,66945.0,66944.0,3.5063184]
[1721563108324,0.00536,66945.0,66944.0,3.17516731]
[1721563108528,0.00536,66945.0,66944.0,3.50628618]
[1721563109388,0.00536,66945.0,66944.0,3.49228618]
[1721563109788,0.00536,66945.0,66944.0,3.50628618]
[1721563110165,0.00536,66945.0,66944.0,3.80504318]
[1721563110942,0.00084,66950.0,66949.0,1.44615347]
[1721563111145,0.00084,66950.0,66949.0,3.70419318]
[1721563111495,0.00084,66950.0,66949.0,3.64212788]
[1721563111673,0.00084,66950.0,66949.0,3.7041222]
[1721563112483,0.00084,66950.0,66949.0,3.7181222]
[1721563112683,0.00084,66950.0,66949.0,3.7321222]
[1721563113064,0.00084,66950.0,66949.0,3.7181222]
[1721563113270,0.00084,66950.0,66949.0,3.7321222]
[1721563114528,0.00084,66950.0,66949.0,3.7461222]
[1721563114731,0.00084,66950.0,66949.0,3.7461207]
[1721563115111,0.00084,66950.0,66949.0,3.7461143]
[1721563117368,0.00084,66950.0,66949.0,3.7520953]
[1721563117863,0.00084,66950.0,66949.0,3.75209512]
[1721563121254,0.00084,66950.0,66949.0,3.75209301]
[1721563122976,0.00084,66950.0,66949.0,3.761041]
[1721563124324,0.00084,66950.0,66949.0,3.38908131]
[1721563124547,0.00084,66950.0,66949.0,3.761041]
[1721563124751,0.00084,66950.0,66949.0,3.38907961]
[1721563124951,0.00084,66950.0,66949.0,3.76103929]
[1721563125483,0.00084,66950.0,66949.0,3.74703929]
[1721563125900,0.00084,66950.0,66949.0,3.73303929]
[1721563126302,0.00084,66950.0,66949.0,3.74703929]
[1721563126520,0.00084,66950.0,66949.0,3.71903929]
[1721563126724,0.00084,66950.0,66949.0,3.71902073]
[1721563126925,0.00084,66950.0,66949.0,3.73302073]
[1721563127527,0.00084,66950.0,66949.0,3.40194043]
[1721563127670,0.00084,66950.0,66949.0,3.73301982]
[1721563127871,0.00084,66950.0,66949.0,3.74701982]
[1721563128502,0.00084,66950.0,66949.0,3.73301982]
[1721563128873,0.00084,66950.0,66949.0,3.74701982]
[1721563129672,0.00084,66950.0,66949.0,3.73301982]
[1721563129832,0.00084,66950.0,66949.0,3.74701982]
[1721563130677,0.00084,66950.0,66949.0,3.7470189]
[1721563132561,0.00084,66950.0,66949.0,3.7330189]
[1721563132767,0.00084,66950.0,66949.0,3.7190189]
[1721563132967,0.00084,66950.0,66949.0,3.7470189]
[1721563133379,0.00084,66950.0,66949.0,3.7330189]
[1721563133587,0.00084,66950.0,66949.0,3.7470189]
[1721563133787,0.00084,66950.0,66949.0,3.0439812]
[1721563134042,0.00084,66950.0,66949.0,3.74701804]
[1721563134274,0.00084,66950.0,66949.0,3.10597424]
[1721563134414,0.00084,66950.0,66949.0,3.74701802]
[1721563135022,0.00084,66950.0,66949.0,3.73301802]
[1721563135225,0.00084,66950.0,66949.0,3.74701802]
[1721563137139,0.00084,66950.0,66949.0,3.43705281]
[1721563137339,0.00084,66950.0,66949.0,3.74701802]
[1721563140267,0.00084,66950.0,66949.0,3.10597431]
[1721563140468,0.00084,66950.0,66949.0,3.74701883]
[1721563142753,0.00084,66950.0,66949.0,3.0439812]
[1721563142976,0.00084,66950.0,66949.0,3.74701371]
[1721563143135,0.00084,66950.0,66949.0,3.0439812]
[1721563143341,0.00084,66950.0,66949.0,3.74701878]
[1721563144418,0.00084,66950.0,66949.0,3.74701856]
[1721563145860,0.00084,66950.0,66949.0,3.41593964]
[1721563146064,0.00084,66950.0,66949.0,3.74701856]
[1721563146871,0.00084,66950.0,66949.0,3.73301856]
[1721563147170,0.00084,66950.0,66949.0,3.74701856]
[1721563147633,0.00084,66950.0,66949.0,3.73301856]
[1721563147784,0.00084,66950.0,66949.0,3.74701856]
[1721563148398,0.00084,66950.0,66949.0,3.73301856]
[1721563149051,0.00084,66950.0,66949.0,3.37505798]
[1721563149250,0.00084,66950.0,66949.0,3.74701448]
[1721563150295,0.00084,66950.0,66949.0,3.88118002]
[1721563151432,0.00084,66950.0,66949.0,3.74701448]
[1721563152169,0.00084,66950.0,66949.0,3.04398098]
[1721563152371,0.00084,66950.0,66949.0,3.7470091]
[1721563152575,0.00084,66950.0,66949.0,3.04398098]
[1721563152798,0.00084,66950.0,66949.0,3.7470091]
[1721563155468,0.00084,66950.0,66949.0,3.74700773]
[1721563155674,0.00084,66950.0,66949.0,4.21051199]
[1721563155890,0.00084,66950.0,66949.0,3.74700773]
[1721563156123,0.00084,66956.0,66955.0,1.44603647]
[1721563156329,0.00084,66956.0,66955.0,3.53549738]
[1721563158365,0.00084,66956.0,66955.0,3.56348315]
[1721563158772,0.00084,66956.0,66955.0,3.56346782]
[1721563159193,0.00084,66956.0,66955.0,3.53546782]
[1721563159397,0.00084,66956.0,66955.0,3.38048504]
[1721563159599,0.00084,66956.0,66955.0,3.42918361]
[1721563159803,0.00084,66956.0,66955.0,3.71389161]
[1721563160010,0.00084,66956.0,66955.0,3.69989161]
[1721563161807,0.00084,66956.0,66955.0,3.71389161]
[1721563162034,0.00084,66956.0,66955.0,3.72784834]
[1721563162467,0.00084,66956.0,66955.0,3.71384751]
[1721563162671,0.00084,66956.0,66955.0,3.69984751]
[1721563162891,0.00084,66956.0,66955.0,3.71384751]
[1721563163112,0.00084,66956.0,66955.0,3.72784751]
[1721563163935,0.00084,66956.0,66955.0,3.74184751]
[1721563164391,0.00084,66956.0,66955.0,3.74183877]
[1721563165214,0.00084,66956.0,66955.0,3.74183869]
[1721563165636,0.00084,66956.0,66955.0,3.72783869]
[1721563165961,0.00084,66956.0,66955.0,3.69983869]
[1721563166162,0.00084,66956.0,66955.0,3.72783869]
[1721563168457,0.00084,66956.0,66955.0,3.72783812]
[1721563169721,0.00084,66956.0,66955.0,3.65003812]
[1721563169924,0.00084,66956.0,66955.0,3.63603812]
[1721563170136,0.00084,66956.0,66955.0,3.65003812]
[1721563170352,0.00084,66956.0,66955.0,3.66403812]
[1721563171525,0.00084,66956.0,66955.0,2.9610895]
[1721563171730,0.00084,66956.0,66955.0,3.66402879]
[1721563171952,0.00084,66956.0,66955.0,3.14704282]
[1721563172150,0.00084,66956.0,66955.0,3.66402878]
[1721563173341,0.00084,66956.0,66955.0,3.6640266]
[1721563173951,0.00084,66956.0,66955.0,3.6140266]
[1721563174181,0.00084,66956.0,66955.0,3.6640266]
[1721563174666,0.00084,66957.0,66956.0,1.74471647]
[1721563174857,0.00084,66957.0,66956.0,3.7620998]
[1721563174971,0.00084,66957.0,66956.0,3.82408416]
[1721563175803,0.00084,66957.0,66956.0,3.83808416]
[1721563176000,0.00084,66957.0,66956.0,3.85208416]
[1721563176238,0.00084,66957.0,66956.0,3.83808416]
[1721563176971,0.00084,66957.0,66956.0,3.85208416]
[1721563178014,0.14654,66957.0,66956.0,3.35732016]
[1721563178215,0.14654,66957.0,66956.0,3.41930931]
[1721563180970,0.14654,66957.0,66956.0,3.0474016]
[1721563181359,0.14654,66957.0,66956.0,3.41936422]
[1721563184224,0.14654,66957.0,66956.0,3.04742127]
[1721563184424,0.14654,66957.0,66956.0,3.41936422]
[1721563184623,0.14654,66957.0,66956.0,3.42860505]
[1721563187519,0.14654,66957.0,66956.0,3.24263272]
[1721563187724,0.14654,66957.0,66956.0,3.42860389]
[1721563190728,0.14654,66957.0,66956.0,3.42860489]
[1721563192863,0.00084,66957.0,66956.0,3.42860489]
[1721563193652,0.00084,66957.0,66956.0,3.42860498]
[1721563200714,0.00084,66957.0,66956.0,2.72559715]
[1721563200920,0.00084,66957.0,66956.0,3.42860497]
[1721563202738,0.00084,66957.0,66956.0,3.42860363]
[1721563203368,0.00084,66957.0,66956.0,3.42860352]
[1721563203963,0.00084,66957.0,66956.0,3.37271839]
[1721563204204,0.14104,66957.0,66956.0,1.22901473]
[1721563204432,0.14104,66957.0,66956.0,0.83832823]
[1721563204638,0.14104,66957.0,66956.0,0.60003467]
[1721563205259,0.14104,66957.0,66956.0,0.58603467]
[1721563205593,0.14104,66957.0,66956.0,0.448054]
[1721563205796,0.14104,66957.0,66956.0,0.57206059]
[1721563206025,0.14104,66957.0,66956.0,0.58306059]
[1721563206643,0.14104,66957.0,66956.0,0.57206059]
[1721563206855,0.14104,66957.0,66956.0,0.58406059]
[1721563207213,0.14104,66957.0,66956.0,0.59406059]
[1721563208567,0.14104,66957.0,66956.0,0.58406059]
[1721563208828,0.14104,66957.0,66956.0,0.448054]
[1721563209144,0.14104,66957.0,66956.0,0.5820587]
[1721563209347,0.14104,66957.0,66956.0,0.5840587]
[1721563209692,0.14104,66957.0,66956.0,0.5820587]
[1721563210017,0.14104,66957.0,66956.0,0.5840587]